Cogmind - Beta 16 @@@ ROGUE MODE // 2026.01.19 @ 22:15:08 // Winter2019/RPGLIKE Player: Gallgagger Result: Destroyed by as-52636 with Assembled Heavy Rifle Performance ------------- Evolutions (0) 0 Regions Visited (3) 600 Robots Destroyed (0) 0 Value Destroyed (0) 0 Prototype IDs (24) 480 Alien Tech Used (0) 0 Bonus (-55) -55 TOTAL SCORE: 1025 Bonus ------- Follower Combat Kills 14 Aligned with FarCom 300 Friendly Fire -369 Cogmind --------- Core Integrity 0/600 Matter 283/300 Energy 90/100 System Corruption 0% Temperature Cool (0) Movement Core (100) Ox1 Location -10/Exiles Parts ------- > --- POWER (1) -------- (None) > --- PROPULSION (4) --- (None) > --- UTILITY (1) ------ Experimental Sensor Array > --- WEAPON (1) ------- Longsword +1 > --- INVENTORY (0) ---- (None) Peak State ------------ > --- POWER ------------ (None) > --- PROPULSION ------- Flight Unit Flight Unit Flight Unit > --- UTILITY ---------- Experimental Sensor Array > --- WEAPON ----------- Longsword +1 > --- INVENTORY -------- (None) [Rating: 20] Favorites ----------- Power None Propulsion Flight Unit Flight Unit Flight Unit Utility Experimental Sensor Array Device Experimental Sensor Array Weapon Longsword +1 Slashing Weapon Longsword +1 Build | -11 -10 -10 -10 ------- Run | Yrd Mat Min Exi Slots Evolved 3 | . 3 . . Power . | . . . . Propulsion 3 | . 3 . . Utility . | . . . . Weapon . | . . . . Parts Attached 5 | . 3 1 1 Power . | . . . . Engine . | . . . . Core . | . . . . Reactor . | . . . . Propulsion 3 | . 3 . . Treads . | . . . . Leg . | . . . . Wheel . | . . . . Hover . | . . . . Flight 3 | . 3 . . Utility 1 | . . 1 . Device 1 | . . 1 . Storage . | . . . . Processor . | . . . . Hackware . | . . . . Protection . | . . . . Artifact . | . . . . Weapon 1 | . . . 1 Energy Gun . | . . . . Energy Cannon . | . . . . Ballistic Gun . | . . . . Ballistic Cannon . | . . . . Launcher . | . . . . Special Weapon . | . . . . Impact Weapon . | . . . . Slashing Weapon 1 | . . . 1 Piercing Weapon . | . . . . Special Melee Weapon . | . . . . Unidentified Prototypes 1 | . . 1 . Parts Lost 3 | . . . 3 Power . | . . . . Propulsion 3 | . . . 3 Utility . | . . . . Weapon . | . . . . Highest Loss Streak 3 | . . . 3 To Critical Strikes 1 | . . . 1 Average Backups . | . . . . Power . | . . . . Propulsion . | . . . . Utility . | . . . . Weapon . | . . . . Tool/Special . | . . . . Unused Backups . | . . . . Power . | . . . . Propulsion . | . . . . Utility . | . . . . Weapon . | . . . . Tool/Special . | . . . . Average Slot Usage (%) 45 | . 8 54 60 Flight 34 | . 8 42 40 Device 9 | . . 11 14 Slashing Weapon 1 | . . . 5 Peak Build Rating 20 | . 3 12 20 Average Rating 9 | . . 10 15 On Entrance 3 | . . 3 12 Avg Prop Armor Cover (%) . | . . . . Naked Turns 52 | . 52 . . Heaviest Build 4 | . . 1 4 Greatest Support 12 | 3 12 12 12 Greatest Overweight (x) . | . . . . Average Overweight (x) . | . . . . Largest Inventory Capacity . | . . . . Average Capacity . | . . . . Most Carried . | . . . . Average Carried . | . . . . Final Capacity . | . . . . Final Carried . | . . . . Class Distribution -------------------- 100% | Mutant Dominant Class ---------------- Mutant | -10/Materials Mutant | -10/Mines Mutant | -10/Exiles Resources | -11 -10 -10 -10 ----------- Run | Yrd Mat Min Exi Matter Collected 209 | 48 . 161 . Remotely . | . . . . Salvage Created . | . . . . Parts . | . . . . Haulers Intercepted . | . . . . Recyclers Shooed . | . . . . Parts Field Recycled . | . . . . Retrieved Matter . | . . . . Parts Self-Destructed . | . . . . Prevented . | . . . . Parts Restored . | . . . . Kills | -11 -10 -10 -10 ------- Run | Yrd Mat Min Exi Combat Hostiles Destroyed . | . . . . Classes Destroyed . | . . . . Best Kill Streak . | . . . . Combat Bots Only . | . . . . Max Kills in Single Turn . | . . . . Gunslinging . | . . . . Exploded . | . . . . Melee . | . . . . Uniques/NPCs Destroyed . | . . . . Combat | -11 -10 -10 -10 -------- Run | Yrd Mat Min Exi Hostile Shots Fired 93 | . 1 45 47 Missed 37 | . . 22 15 Hits 56 | . 1 23 32 Melee 1 | . . . 1 Projectile 55 | . 1 23 31 Critical Strikes 4 | . . . 4 Damage Taken 693 | 6 14 180 493 Core 609 | 6 14 152 437 Absorbed by Shields . | . . . . Redirected to Core 216 | . . 79 137 Core Remaining (%) 99 | 99 . . . Volleys Fired . | . . . . Largest . | . . . . Hottest . | . . . . Shots Fired . | . . . . Gun . | . . . . Cannon . | . . . . Launcher . | . . . . Special . | . . . . Kinetic . | . . . . Thermal . | . . . . Explosive . | . . . . Electromagnetic . | . . . . Robot Hit Streak . | . . . . Robot Miss Streak . | . . . . Penetration Max . | . . . . Secondary Targets . | . . . . Shots Hit Robots 7 | . . . 7 Core Hits 1 | . . . 1 Critical Kills . | . . . . Critical Parts Destroyed . | . . . . Critical Strikes 1 | . . . 1 Sever 1 | . . . 1 Melee Attacks 7 | . . . 7 Impact . | . . . . Slashing 7 | . . . 7 Piercing . | . . . . Sneak Attacks 1 | . . . 1 Combat Hostiles . | . . . . Follow-up Attacks . | . . . . Damage Inflicted 409 | 14 . . 395 Guns . | . . . . Cannons . | . . . . Explosions . | . . . . Melee 395 | . . . 395 Ramming 14 | 14 . . . Kinetic . | . . . . Thermal . | . . . . Explosive . | . . . . Electromagnetic . | . . . . Impact . | . . . . Slashing 395 | . . . 395 Piercing . | . . . . Highest Corruption . | . . . . Average Corruption . | . . . . Corruption Purged . | . . . . Corruption Blocked . | . . . . Overload Shots . | . . . . Overflow Damage . | . . . . Projectiles . | . . . . Explosions . | . . . . Melee . | . . . . Knockbacks . | . . . . Impact . | . . . . Kinetic . | . . . . Secondary . | . . . . Self-Inflicted Damage 6 | 6 . . . Shots . | . . . . Rammed 2 | 2 . . . Targets Rammed 2 | 2 . . . Kicked . | . . . . Crushed . | . . . . Highest Temperature . | . . . . Average Temperature . | . . . . Received Heat Transfer 6 | . 6 . . Siege Activations . | . . . . Martial Activations . | . . . . Shielding Activations . | . . . . Robots Disrupted . | . . . . Combat Hostiles . | . . . . Robots Corrupted . | . . . . Combat Hostiles . | . . . . Parts Fried . | . . . . Impact Corruptions . | . . . . Robots Melted . | . . . . Combat Hostiles . | . . . . Parts Melted . | . . . . Heat Transferred . | . . . . Parts Sabotaged . | . . . . Parts Stolen . | . . . . Parts Stripped . | . . . . Power Chain Reactions . | . . . . Alert | -11 -10 -10 -10 ------- Run | Yrd Mat Min Exi Maximum Alert Level . | . . . . Low Security (%) 100 | 100 100 100 . Level 1 . | . . . . Level 2 . | . . . . Level 3 . | . . . . Level 4 . | . . . . Level 5 . | . . . . High Security . | . . . . Max Security . | . . . . Peak Influence 88 | . . 88 . Initial . | . . . . Average 31 | . . 45 . Influence Increases 198 | . . 198 . Destroy 0b10 Robot/C 40 | . . 40 . Destroy 0b10 Robot/NC 5 | . . 5 . Destroy Leader 10 | . . 10 . Allied During Kill 8 | . . 8 . Lose Combat Pursuer 135 | . . 135 . Influence Decreases 198 | . . 110 88 Entered New Map 88 | . . . 88 Time Decay 90 | . . 90 . Lost Ally 20 | . . 20 . Squads Dispatched . | . . . . Investigation . | . . . . Extermination . | . . . . Reinforcement . | . . . . Assault . | . . . . Garrison . | . . . . Intercept . | . . . . Searches Triggered . | . . . . Construction Impeded . | . . . . Haulers Reinforced . | . . . . Active Scanning Responses . | . . . . Cargo Convoy Interrupts . | . . . . Stealth | -11 -10 -10 -10 --------- Run | Yrd Mat Min Exi Distress Signals . | . . . . Communications Jammed . | . . . . Distress Signals . | . . . . Times Spotted 23 | . 4 11 8 Peak Tracking Total 10 | . 3 6 10 Tactical Retreats 3 | . . 3 . Traps | -11 -10 -10 -10 ------- Run | Yrd Mat Min Exi Traps Triggered . | . . . . Indirectly . | . . . . Trap Hack Attempts . | . . . . Triggered . | . . . . Disarmed . | . . . . Reprogrammed . | . . . . Reused . | . . . . Traps Extracted . | . . . . Installed . | . . . . Triggered . | . . . . Machines | -11 -10 -10 -10 ---------- Run | Yrd Mat Min Exi Machines Disabled . | . . . . Max in Single Turn . | . . . . Machines Repaired . | . . . . Machines Dismantled . | . . . . Machines Sabotaged . | . . . . Overloaded Fab Kills . | . . . . Hacking | -11 -10 -10 -10 --------- Run | Yrd Mat Min Exi Machines Accessed 1 | . . . 1 Terminals . | . . . . Fabricators . | . . . . Repair Stations . | . . . . Recycling Units . | . . . . Scanalyzers . | . . . . Garrison Access . | . . . . Total Hacks 1 | . . . 1 Successful 1 | . . . 1 Failed . | . . . . Catastrophic . | . . . . Database Lockouts . | . . . . Manual 1 | . . . 1 Terminals . | . . . . Fabricators . | . . . . Repair Stations . | . . . . Recycling Units . | . . . . Scanalyzers . | . . . . Garrison Access . | . . . . Terminal Hacks 1 | . . . 1 Proto ID Catalog 1 | . . . 1 Fabricator Hacks . | . . . . Repair Station Hacks . | . . . . Recycling Unit Hacks . | . . . . Scanalyzer . | . . . . Garrison Access Hacks . | . . . . Unauthorized Hacks . | . . . . Terminals . | . . . . Fabricators . | . . . . Repair Stations . | . . . . Recycling Units . | . . . . Scanalyzers . | . . . . Garrison Access . | . . . . Data Cores Recovered . | . . . . Used . | . . . . Hacking Detections . | . . . . Full Trace Events . | . . . . Feedback Events . | . . . . Feedback Blocked . | . . . . Robot Schematics Acquired . | . . . . Robots Built . | . . . . Authchips . | . . . . Time . | . . . . Total Robot Build Rating . | . . . . Part Schematics Acquired . | . . . . Parts Built . | . . . . Authchips . | . . . . Time . | . . . . Total Part Build Rating . | . . . . Part Studies Acquired . | . . . . Parts Repaired . | . . . . Time . | . . . . Parts Recycled . | . . . . Recycled Matter . | . . . . Retrieved Matter . | . . . . Retrieved Components . | . . . . Parts Scanalyzed . | . . . . Part Schematics Acquired . | . . . . Parts Damaged . | . . . . Bothacking | -11 -10 -10 -10 ------------ Run | Yrd Mat Min Exi Used RIF Installer . | . . . . Robots Hacked . | . . . . Non-combat . | . . . . Combat . | . . . . Robot Hacks Applied . | . . . . Relay Couplers Released . | . . . . Fabnet Peak Effective % . | . . . . Robots Rewired . | . . . . Allies Hacked . | . . . . Hacks Repelled . | . . . . Allies | -11 -10 -10 -10 -------- Run | Yrd Mat Min Exi Total Allies 5 | . . 5 . Largest Group 5 | . . 5 . Highest-Rated Group 81 | . . 81 . Highest-Rated Ally 31 | . . 31 . Total Orders . | . . . . Ally Attacks 11 | . . 11 . Total Damage 108 | . . 108 . Kills 3 | . . 3 . Allies Corrupted . | . . . . Allies Melted . | . . . . Intel | -11 -10 -10 -10 ------- Run | Yrd Mat Min Exi Active Infowar (turns) 239 | . . 164 75 Sensors 239 | . . 164 75 Robot Analysis Total . | . . . . Derelict Logs Recovered 1 | . . 1 . Drone Launches . | . . . . Drone Recoveries . | . . . . Exploration | -11 -10 -10 -10 ------------- Run | Yrd Mat Min Exi Turns Passed 356 | 11 77 193 75 Spaces Moved 905 | 17 146 563 179 Core 103 | 17 86 . . Treads . | . . . . Legs . | . . . . Wheels . | . . . . Hover . | . . . . Flight 802 | . 60 563 179 Fastest Speed 34 | 50 34 34 34 Average Speed 35 | 50 43 34 34 Slowest Speed 50 | 50 50 34 34 Overloaded Moves . | . . . . Propulsion Burnouts . | . . . . Robots Hopped 27 | . . 27 . Potential Cave-ins . | . . . . Cave-ins Triggered . | . . . . Exploration Rate (%) 41 | 2 24 96 42 Regions Visited 3 Branch Regions 2 Pre-discovered Areas 2 | . . 2 . Known Exits Taken . | . . . . Unknown Exits Taken 3 | 1 1 1 . Scrap Searched 2 | . . 2 . Spaces Dug . | . . . . Terrain Destroyed . | . . . . Melee . | . . . . Projectile . | . . . . AOE . | . . . . Terrain Rammed . | . . . . Walls Destroyed . | . . . . Machines Disabled . | . . . . Actions | -11 -10 -10 -10 --------- Run | Yrd Mat Min Exi Total 897 | 18 156 536 187 Wait 8 | . 8 . . Move 853 | 16 145 513 179 Hop 22 | . . 22 . Pick Up . | . . . . Fast Attach 5 | . 3 1 1 Attach . | . . . . Detach . | . . . . Swap . | . . . . Drop . | . . . . Fire . | . . . . Melee 7 | . . . 7 Ram 2 | 2 . . . Kick . | . . . . Crush . | . . . . Escape Stasis . | . . . . Rewire . | . . . . Trap . | . . . . Miscellaneous . | . . . . Route ------- -11/Scrapyard -10/Materials -10/Mines (discovered 3 exits: [*Mat x2] / *Exi) -10/Exiles History --------- Turn | Location | Event 3 | -11/Scrapyard | Discovered new exit (range 15) 12 | -11/Scrapyard | Entered Materials 13 | -10/Materials | Met a group of wandering Federalists 67 | -10/Materials | Upgraded with Propulsion slot (x3) 73 | -10/Materials | Discovered new exit (range 13) 89 | -10/Materials | Entered Mines 99 | -10/Mines | Met a Derelict bent on vengeance 117 | -10/Mines | Found a damaged Exp. Sensor Array with a note attached 118 | -10/Mines | Found Prototype Device 118 | -10/Mines | Identified Exp. Sensor Array 132 | -10/Mines | Discovered new exit (range 6) 199 | -10/Mines | Learned location of Recycling (-7) 205 | -10/Mines | Learned location of Storage (-7) 219 | -10/Mines | Assisted by bots powering up and referring to "LRC-V3" 227 | -10/Mines | Discovered new exit (range 8) 280 | -10/Mines | Deemed a non-threat by the Exiles lab entrance 281 | -10/Mines | Discovered new exit (range 5) 282 | -10/Mines | Entered Exiles 291 | -10/Exiles | Met 8R-AWN 296 | -10/Exiles | Met EX-HEX 306 | -10/Exiles | Met EX-BIN 310 | -10/Exiles | Build established: Mutant 310 | -10/Exiles | Aligned with FarCom system 310 | -10/Exiles | Given EX-Vault access code 318 | -10/Exiles | Opened EX-Vault 321 | -10/Exiles | Found Longsword +1 330 | -10/Exiles | Warned to stay clear of 0b10 Research branches 334 | -10/Exiles | Exiles lab attacked by MAIN.C 346 | -10/Exiles | Attacked by the Exiles 349 | -10/Exiles | Core integrity fell below 50% 355 | -10/Exiles | Core integrity fell below 20% 357 | -10/Exiles | Destroyed by as-52636 with Assembled Heavy Rifle Last Messages --------------- 00350_ Machine disabled. 00350_ HV Slug penetrates Wall. 00350_ Penetrated by HV Slug. 00350_ Critical hit (Destroy). 00350_ Flight Unit destroyed. 00350_ HV Slug penetrates Wall. 00352_ Flight Unit destroyed. 00353_ Penetrated by HV Slug. 00353_ HV Slug penetrates as-72396. 00353_ as-72396 suffers critical hit (Destroy). 00353_ HV Slug penetrates Wall. 00355_ HV Slug penetrates as-52636. 00355_ HV Slug penetrates Wall. 00355_ Penetrated by HV Slug. 00355_ HV Slug penetrates as-72396. 00355_ as-72396 suffers critical hit (Destroy). 00355_ as-72396 destroyed. 00357_ HV Slug penetrates Wall. 00357_ Penetrated by HV Slug. 00357_ HV Slug penetrates Wall. Map ----- +----------------------------------------------------+ | """#???????????????????????????????????? | | """#???????????????????????????????????? | | """##??????????????????????????????????? | | """""??????????????????????????????????? | | """##??????????????????????????????????? | | "X" """"???????????????????????????????????? | | """ #???????????????????????????????????? | | """""""""#???????????????????????????????????? | | ###########???????????????????????????????????? | | #?????????????????????????????????????????????? | | #?????????????????????????????????????????????? | | ##????????????????????????????????????????????? | | ##???###########?????????????????????????????? | | #####"""""""""##????????????????????????????? | | " """ """"##???????????????????????????? | | "" " #???????????????????????????? | | " """#???????????????????????????? | | "a"#???????????#####???????????? | | " "##?????????##" #???????????? | | ""###???????#" #???????????? | | " """#??????##" ##??????????? | | """ "#????### ###????????# | | ####""" ##???# ########## | | ???##""" ##?## #""""## | | ????#"""" g### * | | ????#"" @ ## * | | ???#"""" a% #### | | ??"" ""#?#"""""#### | | "" # ""##?#######??#### | | ######??????????????### | | ##?????????????????????? | | " ##??????????????????????? | | "" """ a""#???????????????????????? | | ##""" " " ""#"aaa a "##???????????????????????? | | ???####""" """##"""""""##????????????????????????? | | ??????###""""#?#########?????????????????????????? | | ????????####?????????????????????????????????????? | | ?????????????????????????????????????????????????? | | ?????????????????????????????????????????????????? | | ?????????????????????????????????????????????????? | | ?????????????????????????????????????????????????? | | ?????????????????????????????????????????????????? | | ?????????????????????????????????????????????????? | | ?????????????????????????????????????????????????? | | ?????????????????????????????????????????????????? | | ?????????????????????????????????????????????????? | | ?????????????????????????????????????????????????? | | ?????????????????????????????????????????????????? | | ?????????????????????????????????????????????????? | | ?????????????????????????????????????????????????? | +----------------------------------------------------+ Best States ------------- Heat Dissipation 25 Energy Generation 10 Energy Capacity 100 Matter Stores 278 Matter Capacity 300 Sight Range 16 Robot Scan Range 20 Terrain Scan Density 10 Evasion (%) 63 Item Schematics ----------------- None Robot Schematics ------------------ None Fabricated ------------ Nothing Repaired ---------- Nothing Studied --------- None Alien Tech Used ----------------- None Achievements -------------- None Challenges ------------ None RPGLIKE | -11 -10 -10 -10 --------- Run | Yrd Mat Min Exi Levels Raised . | . . . . XP Earned 4106 | 3000 . 756 350 XP Spent 2700 | . 2400 300 . Upgrades 4 | . 3 1 . Propulsion Slot 3 | . 3 . . Energy Generation 1 | . . 1 . Protomatter Created . | . . . . Protomatter Decayed 9 | . 9 . . Game ------ Seed StorageElectrostormShifter Manual? 0 Play Time 00:04:29 Cumulative 557.8 hours Start 2026.01.19 @ 22:11:42 End 2026.01.19 @ 22:15:08 Sessions 1 Manual Loads 0 Difficulty Rogue Special Mode Winter2019/RPGLIKE Game No. 216 Rogue 62 Adventurer 154 Explorer 0 Win Type - Total 20 Types 4/4/3/3/2/1/0/1/1/1 Lore% 95 Gallery% 88 Achievement% 61 Wizard Run 0 Options --------- Layout 0 ASCII 0 Keyboard 0 Movement Numpad Keybinds 0 Fullscreen 2 Font 18/SmallcapsGlow Map View 76x50 Zoom Use 0% Tactical HUD 1 Map Filters NONE Filters NONE Steam 1 RUN: 7b672b61-5032-4eae-913b-7711bb8c6b08